{"text_format":"3","workbook":"xlsx","n_sheets":2,"sheets":["Личный зачёт","Команда протокол"],"read":"whole","date_system":"1900"}

{"sheet":"Личный зачёт","index":0,"n_rows":34,"n_cols":8,"rows_kept":34,"merged":[[0,1,2,5]]}
[null,"Протокол результатов проведения олимпиады по дисциплине Материаловедение"]
[]
[]
["№","УО","ФИО","Тесты","Ребусы","Задачи","ИТОГО","Место"]
[1,"ГАПОУ \"Заинский Политиехнический Колледж\"","Сафаргалеев Тимерхан Эрнстович",33,14,32,{"$f":"SUM(D5:F5)","v":79},"1 место (вне конкурса)"]
[2,"ГАПОУ \"Заинский Политиехнический Колледж\"","Габбасов Данис Ришатович",32,14,31,{"$f":"SUM(D6:F6)","v":77},"2 место  (вне конкурса)"]
[3,"ГАПОУ \"Лениногорский политехнический колледж\"","Багаутдинов Тимур Галинурович",27,7,0,34]
[4,"ГАПОУ \"Набережночелнинский политехнический колледж\"","Шакиров Арсен Рамилевич",26,8,2,36]
[5,"ГАПОУ \"Лениногорский нефтяной техникум\"","Романов Андрей Викторович",30,14,19,63]
[6,"ГАПОУ \"Нижнекамский Политехнический Колледж имени Е. Н. Королёва\"","Мухаммадиев Тимур Рамилевич",0,8,26,34]
[7,"ГАПОУ \"Лениногорский нефтяной техникум\"","Толстов Максим Максимович",30,14,30,74,"1 место"]
[8,"ГАПОУ \"Актанышский технологический техникум\"","Салихов Ильнур Ирекович",26,10,25,61]
[9,"ГАПОУ \"Елабужский политехнический колледж\"","Наркузиев Эмиль Русланович",29,14,12,55]
[10,"ГАПОУ \"Лениногорский политехнический колледж\"","Цыган Дамир Маратович",33,12,13,58]
[11,"ГАПОУ \"Нурлатский аграрный техникум\"","Абузяров Алексей Павлович",30,14,26,70,"3 место"]
[12,"ГБПОУ \"Бугульминский профессионально-педагогический колледж\"","Галимзянов Рамзил Ришатович",22,6,17,45]
[13,"ГАПОУ \"Камский строительный Колледж им. Е. Н. Батенчука\"","Яманов Михаил Алексеевич",29,6,0,35]
[14,"ГАПОУ \"КАТК им. П.В. Дементьева\"","Сабирова Алина Ленаровна",34,7,27,68,"Лучший теоретик"]
[15,"ГАПОУ \"Мензелинский сельскохозяйственный техникум\"","Ахметзянов Салават Азатович",21,12,19,52]
[16,"ГАПОУ \"КАТК им. П.В. Дементьева\"","Гранацкий Михаил Юрьевич",30,7,29,66]
[17,"ГАПОУ \"Камский строительный Колледж им. Е. Н. Батенчука\"","Фаизов Рамиль Илшатович",28,5,0,33]
[18,"ГАПОУ \"Казанский Энергетический Колледж\"","Султанов Эмиль Маратович",26,13,32,71,"2 место"]
[19,"ГАПОУ \"Казанский Энергетический Колледж\"","Романов Данис Владиславович",25,13,29,67]
[20,"ГАПОУ \"Набережночелнинский Политехнический Колледж\"","Нуретдинов Руслан Рамилевич",20,9,30,59,"Лучший в решении задач"]
[21,"ГАПОУ \"Нижнекамский агропромышленный колледж\"","Билялов Мирас Наилевич",33,7,12,52]
[22,"ГАПОУ \"Нижнекамский агропромышленный колледж\"","Ситдиков Ирек Ильшатович",32,13,25,70,"3 место"]
[23,"ГАПОУ \"КНН им.Н.В.Лемаева\"","Комиссарова Кристина Евгеньевна",28,8,24,60]
[24,"ГАПОУ \"КНН им.Н.В.Лемаева\"","Кузнецов Роман Сергеевич",28,8,26,62]
[25,"ГАПОУ \"Альметьевский политехнический техникум\"","Нигматуллин Ильнар Русланович",28,14,27,69,"За волю к победе"]
[26,"ГАПОУ \"Альметьевский политехнический техникум\"","Авдеев Николай",26,14,27,67]
[27,"ГАПОУ «Сармановский аграрный колледж»","Ахметов Нуруллах Ильнарович",29,13,29,71,"2 место"]
[28,"ГАПОУ «Сармановский аграрный колледж»","Глонин Борис Александрович",23,6,0,29]
[29,"ГАПОУ \"Чистопольский сельскохозяйственный техникум имени Г.И. Усманова\"","Захаров Илья Андреевич",25,15,19,59,"Занимательное материаловедение"]
[30,"ГАПОУ ''Чистопольский сельскохояйственный техникум имени Г.И.Усманова\"","Гладков Кирилл Максимович",24,12,13,49]

{"sheet":"Команда протокол","index":1,"n_rows":28,"n_cols":9,"rows_kept":28,"merged":[[0,1,2,5],[4,0,5,0],[4,1,5,1],[4,7,5,7],[4,8,5,8],[6,0,7,0],[6,1,7,1],[6,7,7,7],[6,8,7,8],[8,0,9,0],[8,1,9,1],[8,7,9,7],[8,8,9,8],[10,0,11,0],[10,1,11,1],[10,7,11,7],[10,8,11,8],[12,0,13,0],[12,1,13,1],[12,7,13,7],[12,8,13,8],[14,0,15,0],[14,1,15,1],[14,7,15,7],[14,8,15,8],[16,0,17,0],[16,1,17,1],[16,7,17,7],[16,8,17,8],[18,0,19,0],[18,1,19,1],[18,7,19,7],[18,8,19,8],[20,0,21,0],[20,1,21,1],[20,7,21,7],[20,8,21,8],[22,0,23,0],[22,1,23,1],[22,7,23,7],[22,8,23,8],[24,0,25,0],[24,1,25,1],[24,7,25,7],[24,8,25,8],[26,0,27,0],[26,1,27,1],[26,7,27,7],[26,8,27,8]]}
[null,"Протокол результатов проведения олимпиады по дисциплине Материаловедение"]
[]
[]
["№","УО","ФИО","Тесты","Ребусы","Задачи","ИТОГО","Всего командное","Место"]
[1,"ГАПОУ \"Заинский Политиехнический Колледж\"","Сафаргалеев Тимерхан Эрнстович",33,14,32,{"$f":"SUM(D5:F5)","v":79},{"$f":"SUM(G5:G6)","v":156},"1 место (вне конкурса)"]
[null,null,"Габбасов Данис Ришатович",32,14,31,{"$f":"SUM(D6:F6)","v":77}]
[2,"ГАПОУ \"Лениногорский политехнический колледж\"","Багаутдинов Тимур Галинурович",27,7,0,{"$f":"SUM(D7:F7)","v":34},{"$f":"SUM(G7:G8)","v":92}]
[null,null,"Цыган Дамир Маратович",33,12,13,{"$f":"SUM(D8:F8)","v":58}]
[3,"ГАПОУ \"Набережночелнинский Политехнический Колледж\"","Нуретдинов Руслан Рамилевич",20,9,30,{"$f":"SUM(D9:F9)","v":59},{"$f":"SUM(G9:G10)","v":95}]
[null,null,"Шакиров Арсен Рамилевич",26,8,2,{"$f":"SUM(D10:F10)","v":36}]
[4,"ГАПОУ \"Лениногорский нефтяной техникум\"","Романов Андрей Викторович",30,14,19,{"$f":"SUM(D11:F11)","v":63},{"$f":"SUM(G11:G12)","v":137},"1 место"]
[null,null,"Толстов Максим Максимович",30,14,30,{"$f":"SUM(D12:F12)","v":74}]
[5,"ГАПОУ \"Камский строительный Колледж им. Е. Н. Батенчука\"","Фаизов Рамиль Илшатович",28,5,0,{"$f":"SUM(D13:F13)","v":33},{"$f":"SUM(G13:G14)","v":68}]
[null,null,"Яманов Михаил Алексеевич",29,6,0,{"$f":"SUM(D14:F14)","v":35}]
[6,"ГАПОУ \"КАТК им. П.В. Дементьева\"","Сабирова Алина Ленаровна",34,7,27,{"$f":"SUM(D15:F15)","v":68},{"$f":"SUM(G15:G16)","v":134},"2 место"]
[null,null,"Гранацкий Михаил Юрьевич",30,7,29,{"$f":"SUM(D16:F16)","v":66}]
[7,"ГАПОУ \"Казанский Энергетический Колледж\"","Султанов Эмиль Маратович",26,13,32,{"$f":"SUM(D17:F17)","v":71},{"$f":"SUM(G17:G18)","v":138}]
[null,null,"Романов Данис Владиславович",25,13,29,{"$f":"SUM(D18:F18)","v":67}]
[8,"ГАПОУ \"Нижнекамский агропромышленный колледж\"","Билялов Мирас Наилевич",33,7,12,{"$f":"SUM(D19:F19)","v":52},{"$f":"SUM(G19:G20)","v":122}]
[null,null,"Ситдиков Ирек Ильшатович",32,13,25,{"$f":"SUM(D20:F20)","v":70}]
[9,"ГАПОУ \"КНН им.Н.В.Лемаева\"","Комиссарова Кристина Евгеньевна",28,8,24,{"$f":"SUM(D21:F21)","v":60},{"$f":"SUM(G21:G22)","v":122}]
[null,null,"Кузнецов Роман Сергеевич",28,8,26,{"$f":"SUM(D22:F22)","v":62}]
[10,"ГАПОУ \"Альметьевский политехнический техникум\"","Нигматуллин Ильнар Русланович",28,14,27,{"$f":"SUM(D23:F23)","v":69},{"$f":"SUM(G23:G24)","v":136},"3 место"]
[null,null,"Авдеев Николай",26,14,27,{"$f":"SUM(D24:F24)","v":67}]
[11,"ГАПОУ «Сармановский аграрный колледж»","Ахметов Нуруллах Ильнарович",29,13,29,{"$f":"SUM(D25:F25)","v":71},{"$f":"SUM(G25:G26)","v":100}]
[null,null,"Глонини Борис Александрович",23,6,0,{"$f":"SUM(D26:F26)","v":29}]
[12,"ГАПОУ \"Чистопольский сельскохозяйственный техникум имени Г.И. Усманова\"","Захаров Илья Андреевич",25,15,19,{"$f":"SUM(D27:F27)","v":59},{"$f":"SUM(G27:G28)","v":108}]
[null,null,"Гладков Кирилл Максимович",24,12,13,{"$f":"SUM(D28:F28)","v":49}]